bitfinex/quotes_SOLUSD_20250410
["timestamp","ask_amount","ask_price","bid_price","bid_amount"]
[1744288696529,8.7054,114.87,114.84,0.0001]
[1744288696844,8.7049,114.88,114.84,0.0001]
[1744288697050,26.43839728,114.86,114.84,0.0001]
[1744288697347,26.43839728,114.85,114.84,0.0001]
[1744288697922,27.35354886,114.89,114.84,0.0001]
[1744288698233,26.43839728,114.87,114.84,0.0001]
[1744288698430,8.7039,114.89,114.84,0.0001]
[1744288698848,26.43839728,114.88,114.84,0.0001]
[1744288699148,8.7039,114.89,114.84,0.0001]
[1744288699331,52.43839728,114.85,114.84,0.0001]
[1744288699649,61.14539728,114.85,114.84,0.0001]
[1744288700149,35.14539728,114.85,114.84,0.0001]
[1744288701044,26.43839728,114.85,114.84,0.0001]
[1744288701247,35.14539728,114.85,114.84,0.0001]
[1744288702120,30.4642,114.89,114.84,0.0001]
[1744288702321,26.43839728,114.87,114.84,0.0001]
[1744288702643,35.14229728,114.89,114.84,26.43849728]
[1744288702950,35.14179728,114.9,114.85,26.43839728]
[1744288703150,35.14109728,114.91,114.86,26.72272042]
[1744288703329,26.43839728,114.89,114.84,26.72282042]
[1744288703654,26.43839728,114.9,114.86,26.43839728]
[1744288703856,35.14169728,114.9,114.86,0.28432314]
[1744288704049,26.43839728,114.9,114.86,26.72272042]
[1744288704824,35.14179728,114.9,114.86,0.28432314]
[1744288705256,26.43839728,114.9,114.86,0.28432314]
[1744288705437,26.43839728,114.9,114.86,26.72272042]
[1744288705638,35.14169728,114.9,114.86,0.28432314]
[1744288705833,26.43839728,114.9,114.86,0.28432314]
[1744288706039,26.43839728,114.9,114.86,35.42892042]
[1744288706457,8.7013,114.93,114.88,26.43839728]
[1744288706746,26.43839728,114.94,114.89,26.43839728]
[1744288706954,0.03,114.95,114.92,26.43839728]
[1744288707245,0.03,114.95,114.88,0.28432314]
[1744288707246,0.03,114.95,114.93,26.43839728]
[1744288707550,0.03,114.95,114.92,26.43839728]
[1744288708046,26.46839728,114.95,114.92,8.7017]
[1744288708247,26.43839728,114.94,114.9,26.43839728]
[1744288708654,26.43839728,114.94,114.89,8.98822314]
[1744288708856,0.03,114.95,114.89,35.42662042]
[1744288709059,26.43839728,114.94,114.9,26.43839728]
[1744288709237,26.46839728,114.95,114.9,26.43839728]
[1744288709553,26.46839728,114.95,114.91,26.43839728]
[1744288709749,26.46839728,114.95,114.9,26.43839728]
[1744288709956,26.43839728,114.94,114.9,8.7028]
[1744288710343,8.7296,114.95,114.9,8.7028]
[1744288710545,26.43839728,114.92,114.89,8.98802314]
[1744288710732,26.43839728,114.94,114.89,35.42642042]
[1744288711438,0.03,114.95,114.91,26.72272042]
[1744288711629,0.03,114.95,114.92,26.43839728]
[1744288712132,0.03,114.95,114.92,35.13959728]
[1744288712333,0.03,114.95,114.93,26.72272042]
[1744288713033,0.03,114.95,114.94,0.28432314]
[1744288713434,0.03,114.95,114.93,0.28432314]
[1744288713642,0.03,114.95,114.92,8.7012]
[1744288713958,0.03,114.95,114.9,26.43839728]
[1744288713959,26.43839728,114.94,114.9,26.43839728]
[1744288714157,26.43839728,114.93,114.88,18.64964886]
[1744288714340,26.43839728,114.9,114.84,12.6814]
[1744288714549,18.64964886,114.93,114.85,65.14539728]
[1744288714746,26.43839728,114.89,114.85,65.14539728]
[1744288715142,26.43839728,114.9,114.86,26.43839728]
[1744288715547,26.43839728,114.9,114.85,35.42972042]
[1744288715745,26.43839728,114.9,114.86,26.72272042]
[1744288716055,26.43839728,114.87,114.84,0.0001]
[1744288716234,26.43839728,114.85,114.84,0.0001]
[1744288716440,26.43839728,114.86,114.84,0.0001]
[1744288717063,26.43839728,114.88,114.84,0.28442314]
[1744288717638,26.43839728,114.86,114.84,0.0001]
[1744288717839,26.43839728,114.85,114.84,0.0001]
[1744288718944,35.14539728,114.85,114.84,0.0001]
[1744288720263,8.7054,114.87,114.84,0.0001]
[1744288720560,26.43839728,114.86,114.84,0.0001]
[1744288720765,8.7054,114.87,114.84,0.0001]
[1744288720988,26.43839728,114.86,114.84,0.0001]
[1744288721147,26.43839728,114.85,114.84,0.0001]
[1744288721466,8.7054,114.87,114.84,0.0001]
[1744288721657,26.43839728,114.85,114.84,0.0001]
[1744288722037,35.14539728,114.85,114.84,0.0001]
[1744288722248,80.23344342,114.85,114.84,0.0001]
[1744288722655,26.43839728,114.85,114.84,0.0001]
[1744288722863,8.7066,114.86,114.84,0.0001]
[1744288723170,26.43839728,114.87,114.84,0.0001]
[1744288723472,8.7024,114.91,114.85,26.43839728]
[1744288723658,26.43839728,114.9,114.85,26.43839728]
[1744288724058,26.43839728,114.89,114.85,26.43839728]
[1744288724260,26.43839728,114.89,114.85,35.14529728]
[1744288724445,8.7041,114.89,114.85,8.7069]
[1744288724646,26.43839728,114.88,114.84,35.43042042]
[1744288724849,35.14249728,114.89,114.84,35.43042042]
[1744288725660,35.14329728,114.88,114.84,0.28442314]
[1744288725875,26.43839728,114.88,114.84,35.43042042]
[1744288726051,35.14249728,114.89,114.84,35.43042042]
[1744288726566,26.43839728,114.89,114.84,35.43042042]
[1744288726754,26.43839728,114.89,114.85,26.43839728]
[1744288726957,8.702,114.92,114.87,26.72272042]
[1744288727167,8.702,114.92,114.88,26.43839728]
[1744288727466,35.14039728,114.92,114.87,26.72272042]
[1744288727667,26.43839728,114.91,114.87,26.72272042]
[1744288727854,26.43839728,114.92,114.88,8.7047]
[1744288728056,26.43839728,114.92,114.87,35.42782042]
[1744288728251,26.43839728,114.9,114.87,0.28432314]
[1744288728457,26.43839728,114.88,114.84,12.0277]
[1744288728665,26.43839728,114.87,114.84,12.0277]
[1744288728965,26.43839728,114.88,114.84,12.0277]
[1744288729170,26.43839728,114.87,114.84,12.0277]
[1744288729546,52.43839728,114.9,114.84,12.0277]
[1744288729772,26.43839728,114.87,114.84,12.0277]
[1744288730368,26.43839728,114.87,114.84,0.0001]
[1744288730576,26.43839728,114.85,114.84,0.0001]
[1744288731572,52.87679456,114.85,114.84,0.0001]
[1744288731768,45.08804614,114.85,114.84,0.0001]
[1744288731970,35.14539728,114.85,114.84,0.0001]
[1744288732368,53.79504614,114.85,114.84,0.0001]
[1744288732572,80.23344342,114.85,114.84,0.0001]
[1744288733378,8.707,114.85,114.84,0.0001]
[1744288733873,35.14539728,114.85,114.84,0.0001]
[1744288735481,8.7032,114.9,114.84,0.28442314]
[1744288735683,26.43839728,114.89,114.84,26.72282042]
[1744288736001,35.14249728,114.89,114.84,35.42992042]
[1744288736481,26.43839728,114.88,114.84,0.28442314]
[1744288736654,26.43839728,114.88,114.84,8.99192314]
[1744288736854,26.43839728,114.88,114.84,0.28442314]
[1744288737180,26.43839728,114.88,114.84,26.72282042]
[1744288737677,35.14249728,114.89,114.84,26.72282042]
[1744288737879,26.43839728,114.9,114.86,0.28432314]
[1744288738077,61.14159728,114.9,114.86,8.99042314]
[1744288738278,35.14109728,114.91,114.86,35.42882042]
[1744288738579,26.43839728,114.91,114.86,35.42882042]
[1744288738958,26.43839728,114.9,114.86,35.42882042]
[1744288739160,8.7021,114.92,114.87,26.43839728]
[1744288739455,26.43839728,114.92,114.88,0.28432314]
[1744288739875,8.7643,114.93,114.86,8.7061]
[1744288739876,26.43839728,114.91,114.86,8.7061]
[1744288740181,26.50139728,114.93,114.88,35.14309728]
[1744288740482,0.063,114.93,114.92,0.28432314]
[1744288740651,0.063,114.93,114.92,26.72272042]
[1744288741981,0.063,114.93,114.92,0.28432314]
[1744288742178,0.063,114.93,114.88,8.7047]
[1744288742383,26.43839728,114.92,114.88,35.14309728]
[1744288742683,0.063,114.93,114.89,26.43839728]
[1744288743064,0.063,114.93,114.92,26.43839728]
[1744288743791,0.03,114.95,114.94,44.933972]
[1744288743962,13.51176038,115.02,114.97,18.933972]
[1744288744162,13.51176038,115.02,114.99,35.13479728]
[1744288744466,13.51176038,115.02,114.99,54.06876928]
[1744288745373,13.51176038,115.02,114.99,66.07986928]
[1744288745690,0.03,115.02,114.99,66.07986928]
[1744288746482,0.0001,115.0,114.99,66.07986928]
[1744288746687,0.063,115.03,115.02,18.933972]
[1744288746885,0.0001,115.03,115.02,71.81076656]
[1744288747193,7.00476038,115.04,115.02,71.81076656]
[1744288747388,7.00476038,115.04,115.03,45.37236928]
[1744288748090,80.95356232,115.05,115.04,18.933972]
[1744288748288,80.95356232,115.05,115.04,45.37236928]
[1744288748587,80.89056233,115.07,115.06,26.28432314]
[1744288748788,0.03,115.09,115.07,0.28432314]
[1744288749093,0.03,115.09,115.08,86.27076656]
[1744288749773,0.03,115.09,115.08,41.18272042]
[1744288749979,0.03,115.09,115.08,86.27076656]
[1744288750366,0.03,115.09,115.08,41.18272042]
[1744288750872,0.03,115.09,115.08,14.74432314]
[1744288751379,0.03,115.09,115.08,41.18272042]
[1744288751987,0.03,115.09,115.08,40.89839728]
[1744288752181,0.03,115.09,115.08,41.18272042]
[1744288753088,0.03,115.09,115.08,14.74432314]
[1744288753392,0.03,115.09,115.08,41.18272042]
[1744288754094,0.03,115.09,115.08,86.27076656]
[1744288755080,0.063,115.13,115.08,86.27076656]
[1744288755081,0.03,115.17,115.13,26.0]
[1744288755278,0.03,115.17,115.16,26.72272042]
[1744288755587,26.46839728,115.17,115.14,14.44]
[1744288755791,0.03,115.17,115.14,14.44]
[1744288755974,0.03,115.17,115.15,26.72272042]
[1744288756175,0.03,115.17,115.16,26.72272042]
[1744288756374,0.03,115.17,115.16,45.37236928]
[1744288756591,0.03,115.17,115.16,26.72272042]
[1744288757984,0.03,115.17,115.16,45.37236928]
[1744288758189,0.03,115.21,115.17,0.28432314]
[1744288758386,0.03,115.21,115.2,26.72272042]
[1744288759283,0.03,115.21,115.2,39.47817461]
[1744288759590,0.03,115.21,115.2,39.76249775]
[1744288759776,0.03,115.21,115.16,18.64964886]
[1744288760099,0.03,115.21,115.2,39.47817461]
[1744288760472,0.03,115.21,115.19,39.47817461]
[1744288761483,0.03,115.21,115.17,0.28432314]
[1744288761799,0.03,115.21,115.18,39.47817461]
[1744288762011,0.03,115.21,115.19,39.47817461]
[1744288762198,0.03,115.21,115.2,39.76249775]
[1744288762583,0.03,115.21,115.2,79.24067236]
[1744288762781,0.03,115.21,115.2,112.33032122]
[1744288763293,0.03,115.21,115.2,93.68067236]
[1744288763482,0.03,115.21,115.2,54.20249775]
[1744288763891,0.03,115.21,115.2,93.68067236]
[1744288764086,0.03,115.21,115.2,112.33032122]
[1744288764994,0.03,115.21,115.2,54.20249775]
[1744288766800,0.03,115.21,115.2,14.72432314]
[1744288766975,0.03,115.21,115.2,54.06033618]
[1744288767486,0.03,115.21,115.2,93.68067236]
[1744288768179,0.03,115.21,115.2,54.20249775]
[1744288768599,0.03,115.21,115.2,93.68067236]
[1744288768891,0.03,115.21,115.2,112.33032122]
[1744288769401,0.03,115.21,115.2,93.68067236]
[1744288769598,0.03,115.21,115.2,99.88402502]
[1744288769773,0.03,115.21,115.2,118.53367388]
[1744288770179,0.03,115.26,115.21,0.28432314]
[1744288770382,0.03,115.26,115.24,39.47817461]
[1744288771276,0.03,115.26,115.21,0.28432314]
[1744288771601,0.03,115.26,115.24,39.47817461]
[1744288772098,39.47817461,115.25,115.2,14.44]
[1744288772299,39.47817461,115.24,115.2,14.44]
[1744288772500,39.47817461,115.22,115.2,14.44]
[1744288772682,39.47817461,115.23,115.2,14.44]
[1744288772997,39.47817461,115.22,115.2,14.44]
[1744288773197,39.47817461,115.22,115.14,52.64107461]
[1744288773401,39.47817461,115.2,115.15,39.47817461]
[1744288773880,18.64964886,115.22,115.14,39.47817461]
[1744288774196,39.47817461,115.18,115.14,0.28432314]
[1744288774401,39.47817461,115.18,115.14,39.47817461]
[1744288774600,39.47817461,115.19,115.14,39.47817461]
[1744288774978,7.7985,115.23,115.16,39.47817461]
[1744288775282,39.47817461,115.18,115.13,39.47817461]
[1744288775490,39.47817461,115.17,115.12,39.47817461]
[1744288775697,18.64964886,115.21,115.12,39.47817461]
[1744288776019,39.47817461,115.17,115.14,0.14216157]
[1744288776586,39.47817461,115.18,115.14,0.14216157]
[1744288777097,8.6794,115.22,115.15,0.14216157]
[1744288777273,39.47817461,115.19,115.15,39.62033618]
[1744288777478,39.47817461,115.18,115.14,0.14216157]
[1744288777704,39.47817461,115.19,115.15,39.47817461]
[1744288777996,39.47817461,115.19,115.12,0.28432314]
[1744288778199,39.47817461,115.18,115.14,39.47817461]
[1744288778792,39.47817461,115.16,115.12,39.47817461]
[1744288778992,39.47817461,115.14,115.11,14.18]
[1744288779175,39.47817461,115.15,115.11,14.18]
[1744288779381,39.47817461,115.15,115.11,53.65817461]
[1744288779604,39.47817461,115.17,115.12,39.47817461]
[1744288779794,39.47817461,115.17,115.13,39.47817461]
[1744288780900,39.47817461,115.17,115.14,8.685]
[1744288781103,39.47817461,115.18,115.14,8.685]
[1744288781298,26.35210804,115.18,115.14,35.03710804]
[1744288781500,26.35210804,115.17,115.14,8.685]
[1744288782201,26.35210804,115.18,115.14,35.03710804]
[1744288782412,18.64964886,115.22,115.15,26.35210804]
[1744288782577,18.64964886,115.22,115.14,8.685]
[1744288782578,26.35210804,115.19,115.14,35.03710804]
[1744288782999,26.35210804,115.19,115.16,8.6835]
[1744288784011,16.477,115.23,115.17,0.28432314]
[1744288784177,34.15060804,115.23,115.18,26.35210804]
[1744288784379,7.7985,115.23,115.19,26.35210804]
[1744288784577,26.35210804,115.22,115.17,0.28432314]
[1744288784796,16.4768,115.23,115.18,26.35210804]
[1744288784991,26.35210804,115.22,115.19,8.6813]
[1744288785201,7.7985,115.23,115.19,8.6813]
[1744288785404,16.4769,115.23,115.19,8.6813]
[1744288785694,26.35210804,115.2,115.16,8.6835]
[1744288785897,26.35210804,115.21,115.16,35.03560804]
[1744288786094,26.35210804,115.21,115.17,26.35210804]
[1744288786486,26.35210804,115.21,115.16,35.03560804]
[1744288786688,16.4769,115.23,115.16,35.03560804]
[1744288786886,26.35210804,115.2,115.16,35.03560804]
[1744288787083,26.35210804,115.22,115.17,26.63643118]
[1744288787400,26.35210804,115.22,115.18,26.35210804]
[1744288787596,26.35210804,115.21,115.17,26.35210804]
[1744288788106,26.35210804,115.21,115.16,8.96782314]
[1744288788296,26.35210804,115.18,115.12,8.6865]
[1744288788490,26.35210804,115.18,115.14,26.35210804]
[1744288788689,26.35210804,115.18,115.12,8.6865]
[1744288789008,26.35210804,115.18,115.13,26.35210804]
[1744288789205,26.35210804,115.19,115.14,35.03710804]
[1744288790010,26.35210804,115.18,115.14,8.685]
[1744288791017,26.35210804,115.18,115.14,35.03710804]
[1744288791305,26.35210804,115.19,115.14,56.74970804]
[1744288791505,26.35210804,115.21,115.17,26.35210804]
[1744288792191,16.477,115.23,115.17,26.35210804]
[1744288792417,42.82910804,115.23,115.18,26.35210804]
[1744288792584,26.35210804,115.22,115.17,26.35210804]
[1744288793210,35.03120804,115.22,115.18,8.682]
[1744288793397,26.35210804,115.2,115.16,35.03560804]
[1744288793708,26.35210804,115.21,115.16,35.03560804]
[1744288793892,26.35210804,115.17,115.1,12.8813]
[1744288794204,26.35210804,115.17,115.13,26.63643118]
[1744288794409,26.35210804,115.19,115.14,26.35210804]
[1744288794809,26.35210804,115.18,115.13,26.63643118]
[1744288795009,26.35210804,115.19,115.14,26.35210804]
[1744288795193,26.35210804,115.2,115.15,26.63643118]
[1744288795389,8.6791,115.22,115.11,14.18]
[1744288795390,26.35210804,115.19,115.14,35.03710804]
[1744288795592,26.35210804,115.19,115.15,26.35210804]
[1744288795895,26.35210804,115.19,115.14,35.03710804]
[1744288796085,26.35210804,115.19,115.15,26.63643118]
[1744288796494,26.35210804,115.19,115.14,35.03710804]
[1744288796692,26.35210804,115.17,115.14,8.685]
[1744288796887,18.64964886,115.21,115.14,35.03710804]
[1744288796888,26.35210804,115.18,115.14,35.03710804]
[1744288797094,26.35210804,115.18,115.14,8.685]
[1744288797294,26.35210804,115.17,115.13,35.03760804]
[1744288797493,26.35210804,115.17,115.13,8.6855]
[1744288797698,26.35210804,115.17,115.13,35.03760804]
[1744288799112,8.6809,115.2,115.14,26.35210804]
[1744288799315,26.35210804,115.18,115.15,8.6843]
[1744288799993,35.03410804,115.18,115.14,8.6846]
[1744288800302,8.6805,115.2,115.14,35.03670804]
[1744288800510,26.35210804,115.16,115.12,26.35210804]
[1744288800695,26.35210804,115.15,115.12,8.6863]
[1744288801026,26.35210804,115.14,115.11,22.8672]
[1744288801210,26.35210804,115.14,115.11,8.6872]
[1744288801514,26.35210804,115.14,115.1,26.41510804]
[1744288801696,26.35210804,115.15,115.11,26.35210804]
[1744288801887,26.35210804,115.16,115.1,0.063]
[1744288802385,26.35210804,115.14,115.1,0.063]
[1744288802602,26.35210804,115.11,115.1,0.063]
[1744288802800,26.35210804,115.12,115.1,0.063]
[1744288803290,26.35210804,115.11,115.1,0.063]
[1744288804216,26.35210804,115.12,115.1,0.063]
[1744288804716,45.0017569,115.11,115.1,0.063]
[1744288805299,26.35210804,115.11,115.1,0.063]
[1744288805498,35.03940804,115.11,115.1,0.063]
[1744288805904,26.35210804,115.14,115.1,0.063]
[1744288806116,26.35210804,115.11,115.1,0.063]
[1744288806795,26.35210804,115.11,115.04,56.77620804]
[1744288806995,26.35210804,115.09,115.04,56.77620804]
[1744288807195,26.35210804,115.09,115.05,26.35210804]
[1744288808121,48.06470804,115.14,115.04,21.7315]
[1744288808122,27.33544886,115.13,115.06,26.35210804]
[1744288808421,26.35210804,115.12,115.07,26.35210804]
[1744288808603,26.35210804,115.11,115.06,26.28432314]
[1744288808809,18.64964886,115.13,115.04,4.4842076]
[1744288809032,26.35210804,115.09,115.03,12.1809]
[1744288809204,26.35210804,115.08,115.03,0.063]
[1744288809409,26.35210804,115.07,115.03,26.41510804]
[1744288809609,26.35210804,115.07,115.03,0.063]
[1744288809913,26.35210804,115.1,115.05,26.35210804]
[1744288810106,26.35210804,115.1,115.03,0.063]
[1744288810306,26.35210804,115.1,115.05,26.35210804]
[1744288810509,26.35210804,115.09,115.04,26.35210804]
[1744288810698,26.35210804,115.09,115.05,26.35210804]
[1744288811119,26.35210804,115.08,115.04,26.35210804]
[1744288811504,26.35210804,115.08,115.03,26.41510804]
[1744288811821,26.35210804,115.06,115.03,0.063]
[1744288812200,18.64964886,115.08,115.03,0.063]
[1744288812414,26.35210804,115.06,115.03,0.063]
[1744288812721,26.35210804,115.05,115.03,0.063]
[1744288812931,26.35210804,115.06,115.03,0.063]
[1744288813129,26.35210804,115.05,115.03,0.063]
[1744288813311,53.1496569,115.08,115.03,0.063]
[1744288813312,26.35210804,115.04,115.03,0.063]
[1744288813625,26.35210804,115.05,115.03,0.063]
[1744288815004,8.1479,115.08,115.03,26.41510804]
[1744288815207,27.33614886,115.12,115.06,26.35210804]
[1744288815416,8.6865,115.12,115.07,26.35210804]
[1744288815620,26.35210804,115.11,115.06,26.35210804]
[1744288815822,26.35210804,115.1,115.06,26.35210804]
[1744288816127,26.35210804,115.07,115.03,0.063]
[1744288816425,26.35210804,115.07,115.03,26.41510804]
[1744288816627,26.35210804,115.07,115.03,0.063]
[1744288816804,26.35210804,115.07,115.03,26.41510804]
[1744288817206,26.35210804,115.04,115.03,0.063]
[1744288818108,35.04470804,115.04,115.03,0.063]
[1744288818535,53.6943569,115.04,115.03,0.063]
[1744288820001,45.0017569,115.04,115.03,0.063]
[1744288820525,8.6921,115.05,115.03,0.063]
[1744288820711,26.35210804,115.04,115.03,0.063]
[1744288821807,0.4999892,115.12,115.03,0.063]
[1744288822005,0.4999892,115.12,115.03,26.41510804]
[1744288822006,18.64964886,115.09,115.03,26.41510804]
[1744288822228,26.35210804,115.07,115.03,35.10770804]
[1744288822424,16.7523,115.1,115.03,8.7556]
[1744288822634,26.35210804,115.08,115.03,35.10770804]
[1744288822828,26.35210804,115.07,115.03,8.7556]
[1744288823024,26.35210804,115.06,115.03,8.7556]
[1744288823229,26.35210804,115.07,115.03,8.7556]
[1744288823528,26.35210804,115.07,115.03,35.10770804]
[1744288824128,8.064,115.1,115.04,26.35210804]
[1744288824325,26.35210804,115.09,115.04,26.35210804]
[1744288824525,26.35210804,115.07,115.03,0.063]
[1744288825231,26.35210804,115.05,115.03,0.063]
[1744288826350,8.6906,115.07,115.03,0.063]
[1744288826552,26.35210804,115.05,115.03,0.063]
[1744288827219,27.33964886,115.08,115.03,0.063]
[1744288827417,26.35210804,115.06,115.03,0.063]
[1744288828236,27.33964886,115.08,115.03,0.063]
[1744288828440,26.35210804,115.07,115.03,0.063]
[1744288828736,26.35210804,115.06,115.03,0.063]
[1744288828922,26.35210804,115.04,115.03,0.063]
[1744288830216,45.0017569,115.04,115.03,0.063]
[1744288830442,53.6943569,115.04,115.03,0.063]
[1744288831143,18.64964886,115.03,114.98,0.063]
[1744288831312,26.35210804,114.99,114.98,0.063]
[1744288832134,45.0017569,114.99,114.98,0.063]
[1744288832340,53.6981569,114.99,114.98,0.063]
[1744288833311,18.64964886,114.98,114.91,8.7652]
[1744288833520,26.35210804,114.93,114.91,8.7652]
[1744288833720,18.64964886,114.98,114.91,8.7652]
[1744288833721,26.35210804,114.94,114.91,8.7652]
[1744288834121,26.35210804,114.95,114.91,35.11730804]
[1744288834335,26.35210804,114.96,114.91,35.11730804]
[1744288834546,8.6964,114.99,114.92,26.35210804]
[1744288834834,26.35210804,114.98,114.94,26.35210804]
[1744288835037,26.35210804,114.96,114.92,0.28432314]
[1744288835242,26.35210804,114.97,114.93,26.35210804]
[1744288835846,22.8553,115.01,114.94,26.35210804]
[1744288836043,6.52444833,115.0,114.98,26.35210804]
[1744288836225,6.52444833,115.0,114.97,26.35210804]
[1744288836431,6.52444833,115.0,114.99,26.35210804]
[1744288836915,6.52444833,115.0,114.99,32.75983187]
[1744288837316,6.52444833,115.0,114.99,35.96371322]
[1744288837726,27.34114886,115.06,114.99,9.61160518]
[1744288837946,26.35210804,115.04,114.99,35.96371322]
[1744288838252,26.35210804,115.04,114.99,26.35210804]
[1744288838745,26.35210804,115.04,115.0,15.05687661]
[1744288839550,26.35210804,115.04,115.01,6.36187661]
[1744288839736,7.5903,115.07,115.01,32.71398465]
[1744288839919,26.35210804,115.06,115.02,26.35210804]
[1744288840121,26.35210804,115.07,115.02,26.35210804]
[1744288840548,26.35210804,115.05,115.01,6.36187661]
[1744288840746,26.35210804,115.03,115.02,6.36187661]
[1744288841646,26.35210804,115.03,114.97,26.35210804]
[1744288841953,26.35210804,115.02,114.98,26.35210804]
[1744288842136,8.6911,115.06,114.99,26.35210804]
[1744288842447,26.35210804,115.04,115.0,26.35210804]
[1744288842632,26.35210804,115.05,115.01,32.71921552]
[1744288842955,26.35210804,115.05,115.01,15.06140748]
[1744288843128,26.35210804,115.04,115.01,15.06140748]
[1744288843549,26.35210804,115.04,115.02,6.36710748]
[1744288844122,26.35210804,115.04,115.01,8.6943]
[1744288844323,26.35210804,115.06,115.01,35.04640804]
[1744288844852,26.35210804,115.05,115.01,35.04640804]
[1744288845260,26.35210804,115.04,115.01,8.6943]
[1744288845428,8.6911,115.06,115.01,8.6943]
[1744288845429,26.35210804,115.05,115.01,8.6943]
[1744288845631,26.35210804,115.04,114.99,26.35210804]
[1744288845827,26.35210804,115.05,115.0,26.35210804]
[1744288846032,8.6896,115.08,115.01,26.35210804]
[1744288846228,27.36884886,115.09,115.03,26.35210804]
[1744288846462,26.35210804,115.07,115.03,26.35210804]
[1744288846751,26.35210804,115.06,114.99,0.28432314]
[1744288846957,26.35210804,115.05,115.01,26.35210804]
[1744288847148,26.35210804,115.05,114.99,0.28432314]
[1744288847149,26.35210804,115.04,114.99,26.63643118]
[1744288847457,26.35210804,115.04,115.0,26.35210804]
[1744288847956,26.35210804,115.05,115.0,26.35210804]
[1744288848157,26.35210804,115.04,115.0,26.35210804]
[1744288848332,26.35210804,115.04,114.99,26.35210804]
[1744288848534,26.35210804,115.03,114.99,26.35210804]
[1744288848734,8.6916,115.06,115.0,26.63643118]
[1744288849031,26.35210804,115.05,115.0,26.63643118]
[1744288849931,26.35210804,115.05,115.01,26.35210804]
[1744288850148,26.35210804,115.05,115.0,26.63643118]
[1744288850841,26.35210804,115.05,115.01,26.35210804]
[1744288851069,26.35210804,115.06,115.01,26.35210804]
[1744288851654,26.35210804,115.05,115.01,26.35210804]
[1744288851968,26.35210804,115.06,115.01,26.35210804]
[1744288852468,26.35210804,115.05,115.01,26.35210804]
[1744288854262,26.35210804,115.06,115.01,26.35210804]
[1744288854642,26.35210804,115.05,115.01,26.35210804]
[1744288855251,26.35210804,115.02,114.98,13.246]
[1744288855566,26.35210804,114.99,114.95,12.003]
[1744288855938,26.35210804,114.99,114.95,38.35510804]
[1744288856340,26.35210804,115.02,114.95,38.35510804]
[1744288856560,26.35210804,115.0,114.96,26.35210804]
[1744288857338,26.35210804,115.0,114.97,8.6979]
[1744288857546,29.3839,115.04,114.97,35.05000804]
[1744288857753,26.35210804,115.0,114.97,8.6979]
[1744288857954,26.35210804,115.0,114.96,8.6986]
[1744288858461,26.35210804,114.97,114.94,8.7001]
[1744288858841,26.35210804,114.97,114.93,8.7635]
[1744288859042,26.35210804,114.97,114.94,9.56800687]
[1744288859443,26.35210804,114.97,114.94,18.26790687]
[1744288859742,26.35210804,114.97,114.94,6.37858085]
[1744288859944,26.35210804,114.97,114.94,8.7001]
[1744288860438,8.6933,115.03,114.96,26.35210804]
[1744288860647,26.35210804,115.01,114.96,26.35210804]
[1744288861357,8.6933,115.03,114.95,26.63643118]
[1744288861358,26.35210804,115.0,114.95,26.63643118]
[1744288861541,26.35210804,115.0,114.95,35.33543118]
[1744288861744,26.35210804,114.99,114.95,35.33543118]
[1744288862048,26.35210804,115.02,114.95,35.33543118]
[1744288862049,26.35210804,115.02,114.95,35.05110804]
[1744288862256,26.35210804,114.98,114.94,35.19406961]
[1744288862561,26.35210804,114.98,114.94,8.84196157]
[1744288862750,26.35210804,114.98,114.93,26.41510804]
[1744288862751,26.35210804,114.96,114.93,8.7637]
[1744288862947,26.35210804,114.94,114.93,0.063]
[1744288863148,26.35210804,114.95,114.93,0.063]
[1744288863347,26.0,114.98,114.93,8.7639]
[1744288863552,26.35210804,114.97,114.93,8.7639]
[1744288863746,26.35210804,114.96,114.93,0.063]
[1744288863950,26.35210804,114.94,114.93,0.063]
[1744288865455,45.0017569,114.94,114.93,0.063]
[1744288865769,53.7018569,114.94,114.93,0.063]
[1744288866460,45.0017569,114.94,114.93,0.063]
[1744288866655,44.64964886,114.95,114.93,0.063]
[1744288866870,26.35210804,114.94,114.93,0.063]
[1744288867248,26.0,114.95,114.93,0.063]
[1744288867448,26.35210804,114.94,114.93,0.063]
[1744288868167,45.0017569,114.94,114.93,0.063]
[1744288868466,79.17546494,114.92,114.91,0.063]
[1744288868649,91.60916494,114.92,114.88,0.063]
[1744288868852,45.0017569,114.89,114.88,0.063]
[1744288869353,45.0017569,114.89,114.86,0.063]